[Event "Late-Titled-Tuesday-Blitz-April-16-2024"]
[Site "Chess.com"]
[Date "2024.04.16"]
[Round "10"]
[White "katharinareinecke"]
[Black "rhwr"]
[Result "1-0"]
[WhiteElo "2036"]
[BlackElo "2228"]
[TimeControl "180+1"]
[EndTime "15:54:14 PDT"]
[Termination "katharinareinecke won by resignation"]

1. e4 {[%clk 0:03:00.9]} 1... c5 {[%clk 0:03:00.9]} 2. Nf3 {[%clk 0:02:58.8]}
2... d6 {[%clk 0:03:00.1]} 3. Bb5+ {[%clk 0:02:57.9]} 3... Nd7 {[%clk
0:02:59.3]} 4. O-O {[%clk 0:02:56.9]} 4... a6 {[%clk 0:02:59.7]} 5. Bd3 {[%clk
0:02:55.2]} 5... e5 {[%clk 0:02:57.1]} 6. c3 {[%clk 0:02:54.2]} 6... Ngf6 {[%clk
0:02:57.2]} 7. Bc2 {[%clk 0:02:53.1]} 7... Be7 {[%clk 0:02:57.7]} 8. d4 {[%clk
0:02:48]} 8... O-O {[%clk 0:02:55.7]} 9. h3 {[%clk 0:02:21.8]} 9... b5 {[%clk
0:02:54.8]} 10. Be3 {[%clk 0:02:21.2]} 10... Qc7 {[%clk 0:02:54.1]} 11. Nbd2
{[%clk 0:02:12.6]} 11... Bb7 {[%clk 0:02:48.5]} 12. d5 {[%clk 0:02:12]} 12...
Bc8 {[%clk 0:02:44.3]} 13. c4 {[%clk 0:02:07.5]} 13... Nb6 {[%clk 0:02:42.9]}
14. b3 {[%clk 0:02:05]} 14... Bd7 {[%clk 0:02:41.9]} 15. Nh2 {[%clk 0:02:00.3]}
15... Ne8 {[%clk 0:02:32.1]} 16. f4 {[%clk 0:01:58]} 16... exf4 {[%clk
0:02:31.5]} 17. Bxf4 {[%clk 0:01:53.3]} 17... Bf6 {[%clk 0:02:31.4]} 18. Rc1
{[%clk 0:01:49.1]} 18... Bd4+ {[%clk 0:02:31.1]} 19. Kh1 {[%clk 0:01:48.5]}
19... bxc4 {[%clk 0:02:28.6]} 20. bxc4 {[%clk 0:01:42.1]} 20... Nf6 {[%clk
0:02:18.4]} 21. Bd3 {[%clk 0:01:38.5]} 21... Na4 {[%clk 0:02:12.8]} 22. Ndf3
{[%clk 0:01:35.8]} 22... Nb2 {[%clk 0:02:08.1]} 23. Qd2 {[%clk 0:01:34.2]} 23...
Nxd3 {[%clk 0:02:07.7]} 24. Qxd3 {[%clk 0:01:34.6]} 24... Bb2 {[%clk 0:02:06.3]}
25. Rb1 {[%clk 0:01:29]} 25... Rab8 {[%clk 0:02:00.1]} 26. Qc2 {[%clk
0:01:02.5]} 26... Ba3 {[%clk 0:01:48.7]} 27. e5 {[%clk 0:00:59.8]} 27... Nh5
{[%clk 0:01:48]} 28. exd6 {[%clk 0:00:56.7]} 28... Qa5 {[%clk 0:01:35.2]} 29.
Ng5 {[%clk 0:00:43.6]} 29... g6 {[%clk 0:01:33.8]} 30. Be5 {[%clk 0:00:36.5]}
30... Rxb1 {[%clk 0:01:20.1]} 31. Rxb1 {[%clk 0:00:35.8]} 31... Bf5 {[%clk
0:01:19.4]} 32. Ng4 {[%clk 0:00:27.7]} 32... f6 {[%clk 0:00:51]} 33. Nh6+ {[%clk
0:00:25.7]} 33... Kg7 {[%clk 0:00:50.4]} 34. Nxf5+ {[%clk 0:00:26]} 34... gxf5
{[%clk 0:00:48.1]} 35. Ne6+ {[%clk 0:00:26.1]} 35... Kf7 {[%clk 0:00:43.5]} 36.
Nxf8 {[%clk 0:00:26]} 36... Kxf8 {[%clk 0:00:39.3]} 37. Qxf5 {[%clk 0:00:23.7]}
37... Qd8 {[%clk 0:00:33.6]} 38. Qxh5 {[%clk 0:00:21.8]} 38... fxe5 {[%clk
0:00:32.1]} 39. Rf1+ {[%clk 0:00:21.9]} 39... Kg8 {[%clk 0:00:30.4]} 40. Qf7+
{[%clk 0:00:21.6]} 40... Kh8 {[%clk 0:00:30.1]} 41. Qf8+ {[%clk 0:00:19.8]}
41... Qxf8 {[%clk 0:00:29]} 42. Rxf8+ {[%clk 0:00:20.7]} 42... Kg7 {[%clk
0:00:29.4]} 43. Re8 {[%clk 0:00:19.3]} 1-0

[Event "Late-Titled-Tuesday-Blitz-April-16-2024"]
[Site "Chess.com"]
[Date "2024.04.16"]
[Round "10"]
[White "kleinebeer98"]
[Black "FabianoCaruana"]
[Result "0-1"]
[WhiteElo "2903"]
[BlackElo "3091"]
[TimeControl "180+1"]
[EndTime "15:54:20 PDT"]
[Termination "FabianoCaruana won by resignation"]

1. e4 {[%clk 0:03:00.9]} 1... c5 {[%clk 0:02:58.2]} 2. Nf3 {[%clk 0:03:01.1]}
2... Nc6 {[%clk 0:02:58.8]} 3. d4 {[%clk 0:03:00]} 3... cxd4 {[%clk 0:02:58.7]}
4. Nxd4 {[%clk 0:03:00.9]} 4... Nf6 {[%clk 0:02:59.1]} 5. Nc3 {[%clk 0:03:01.3]}
5... d6 {[%clk 0:02:58]} 6. Nd5 {[%clk 0:02:59.3]} 6... Bd7 {[%clk 0:02:35]} 7.
Nxf6+ {[%clk 0:02:56.8]} 7... gxf6 {[%clk 0:02:35.9]} 8. Be3 {[%clk 0:02:51.3]}
8... e6 {[%clk 0:02:25.1]} 9. Be2 {[%clk 0:02:48.2]} 9... a6 {[%clk 0:02:24.4]}
10. O-O {[%clk 0:02:46.2]} 10... Qc7 {[%clk 0:02:21.1]} 11. c4 {[%clk
0:02:44.7]} 11... Ne5 {[%clk 0:02:11.6]} 12. Rc1 {[%clk 0:02:44.5]} 12... h5
{[%clk 0:02:10]} 13. h3 {[%clk 0:02:39.5]} 13... h4 {[%clk 0:02:08.4]} 14. b4
{[%clk 0:02:39.4]} 14... Ng6 {[%clk 0:02:02]} 15. Bg4 {[%clk 0:02:34.5]} 15...
Bh6 {[%clk 0:01:58.8]} 16. Bxh6 {[%clk 0:02:30.1]} 16... Rxh6 {[%clk 0:01:59.7]}
17. c5 {[%clk 0:02:28.9]} 17... dxc5 {[%clk 0:01:45.2]} 18. Rxc5 {[%clk
0:02:27.2]} 18... Qf4 {[%clk 0:01:45.6]} 19. b5 {[%clk 0:02:09]} 19... b6 {[%clk
0:01:37]} 20. Rc3 {[%clk 0:02:01.7]} 20... axb5 {[%clk 0:01:35.8]} 21. Qb3
{[%clk 0:01:54.5]} 21... Kf8 {[%clk 0:01:18.5]} 22. Rfc1 {[%clk 0:01:47.6]}
22... Ne5 {[%clk 0:01:09.9]} 23. Rc7 {[%clk 0:01:46.3]} 23... Nxg4 {[%clk
0:01:04.9]} 24. hxg4 {[%clk 0:01:43.5]} 24... h3 {[%clk 0:01:04.7]} 25. gxh3
{[%clk 0:01:25.7]} 25... Ra4 {[%clk 0:01:04.5]} 26. Qb2 {[%clk 0:00:57.9]} 26...
Rxh3 {[%clk 0:00:56.7]} 27. Ne2 {[%clk 0:00:54.4]} 27... Qxg4+ {[%clk
0:00:49.7]} 28. Ng3 {[%clk 0:00:55.1]} 28... e5 {[%clk 0:00:33.9]} 29. R1c3
{[%clk 0:00:40.5]} 29... Be6 {[%clk 0:00:30.7]} 30. Qxb5 {[%clk 0:00:38.5]}
30... Rxa2 {[%clk 0:00:29.5]} 31. Qb1 {[%clk 0:00:31]} 31... Rd2 {[%clk
0:00:25.4]} 32. Kg2 {[%clk 0:00:25.8]} 32... Qh4 {[%clk 0:00:16.8]} 33. Qg1
{[%clk 0:00:24.9]} 33... Rh2+ {[%clk 0:00:09.8]} 34. Qxh2 {[%clk 0:00:21.3]}
34... Rxf2+ {[%clk 0:00:10.1]} 35. Kxf2 {[%clk 0:00:22.2]} 35... Qxh2+ {[%clk
0:00:10.5]} 36. Kf3 {[%clk 0:00:21.2]} 36... Qh3 {[%clk 0:00:10.8]} 37. Kf2
{[%clk 0:00:21.1]} 37... Qg4 {[%clk 0:00:10.1]} 38. Rb7 {[%clk 0:00:19]} 38...
Qf4+ {[%clk 0:00:09.9]} 39. Kg2 {[%clk 0:00:19]} 39... Qd2+ {[%clk 0:00:10]} 40.
Ne2 {[%clk 0:00:18.5]} 40... Qxe2+ {[%clk 0:00:10.1]} 0-1

[Event "Late-Titled-Tuesday-Blitz-April-16-2024"]
[Site "Chess.com"]
[Date "2024.04.16"]
[Round "10"]
[White "Slovineanu"]
[Black "chess_sharparchitect"]
[Result "1-0"]
[WhiteElo "2469"]
[BlackElo "2235"]
[TimeControl "180+1"]
[EndTime "15:54:25 PDT"]
[Termination "Slovineanu won on time"]

1. d4 {[%clk 0:03:00.9]} 1... Nf6 {[%clk 0:02:59.5]} 2. Nf3 {[%clk 0:03:01.1]}
2... d5 {[%clk 0:02:59.3]} 3. c4 {[%clk 0:03:01.5]} 3... e6 {[%clk 0:02:58.9]}
4. e3 {[%clk 0:03:02]} 4... c5 {[%clk 0:02:53.4]} 5. cxd5 {[%clk 0:03:01.5]}
5... exd5 {[%clk 0:02:52]} 6. Bb5+ {[%clk 0:03:00.7]} 6... Bd7 {[%clk 0:02:49]}
7. Be2 {[%clk 0:03:00.3]} 7... cxd4 {[%clk 0:02:46.4]} 8. Nxd4 {[%clk
0:02:59.9]} 8... Nc6 {[%clk 0:02:45.5]} 9. O-O {[%clk 0:02:59.6]} 9... Bd6
{[%clk 0:02:43.9]} 10. Nc3 {[%clk 0:02:56.4]} 10... O-O {[%clk 0:02:42.5]} 11.
b3 {[%clk 0:02:51.4]} 11... Re8 {[%clk 0:02:22.2]} 12. Bb2 {[%clk 0:02:50.4]}
12... Rc8 {[%clk 0:02:18.9]} 13. Nf3 {[%clk 0:02:44.9]} 13... Be6 {[%clk
0:02:03.8]} 14. Nb5 {[%clk 0:02:43.5]} 14... Bb8 {[%clk 0:02:01.1]} 15. Nbd4
{[%clk 0:02:43.1]} 15... Ne4 {[%clk 0:01:55.7]} 16. Rc1 {[%clk 0:02:40.2]} 16...
Qd6 {[%clk 0:01:46.2]} 17. Nxc6 {[%clk 0:02:24.9]} 17... bxc6 {[%clk 0:01:46.1]}
18. Ba6 {[%clk 0:02:08]} 18... Ng5 {[%clk 0:01:30.8]} 19. Ne5 {[%clk 0:01:35.7]}
19... f6 {[%clk 0:01:19.5]} 20. Bxc8 {[%clk 0:01:32.9]} 20... Rxc8 {[%clk
0:01:15.5]} 21. f4 {[%clk 0:01:33]} 21... Ne4 {[%clk 0:00:52.6]} 22. Nf3 {[%clk
0:01:32.1]} 22... c5 {[%clk 0:00:47.1]} 23. Nd2 {[%clk 0:01:21.8]} 23... f5
{[%clk 0:00:34.8]} 24. Nxe4 {[%clk 0:01:10.7]} 24... fxe4 {[%clk 0:00:35.7]} 25.
Qe2 {[%clk 0:01:10.1]} 25... Qb6 {[%clk 0:00:30.6]} 26. Rfd1 {[%clk 0:00:54.4]}
26... Bd6 {[%clk 0:00:27.4]} 27. Rc2 {[%clk 0:00:44.9]} 27... Bf8 {[%clk
0:00:25.2]} 28. Be5 {[%clk 0:00:40.2]} 28... Qb7 {[%clk 0:00:23.5]} 29. Rdc1
{[%clk 0:00:39]} 29... Qd7 {[%clk 0:00:22.1]} 30. Bd4 {[%clk 0:00:33.2]} 30...
cxd4 {[%clk 0:00:16.5]} 31. Rxc8 {[%clk 0:00:32.3]} 31... d3 {[%clk 0:00:16.6]}
32. Qd2 {[%clk 0:00:30.3]} 32... Qb7 {[%clk 0:00:12.9]} 33. Kf2 {[%clk
0:00:20.8]} 33... Kf7 {[%clk 0:00:11.9]} 34. R8c7+ {[%clk 0:00:20]} 34... Qxc7
{[%clk 0:00:02.1]} 35. Rxc7+ {[%clk 0:00:20.4]} 35... Kf6 {[%clk 0:00:01.9]} 36.
Rc6 {[%clk 0:00:20]} 1-0

[Event "Late-Titled-Tuesday-Blitz-April-16-2024"]
[Site "Chess.com"]
[Date "2024.04.16"]
[Round "10"]
[White "jinxy2009"]
[Black "CMButgood"]
[Result "1-0"]
[WhiteElo "2310"]
[BlackElo "2058"]
[TimeControl "180+1"]
[EndTime "15:54:30 PDT"]
[Termination "jinxy2009 won on time"]

1. e4 {[%clk 0:03:00.9]} 1... c5 {[%clk 0:02:57.2]} 2. Nf3 {[%clk 0:03:00.4]}
2... d6 {[%clk 0:02:53.5]} 3. d4 {[%clk 0:03:00.8]} 3... cxd4 {[%clk 0:02:54.4]}
4. Nxd4 {[%clk 0:03:01.3]} 4... Nf6 {[%clk 0:02:54.1]} 5. Nc3 {[%clk 0:03:01.7]}
5... g6 {[%clk 0:02:54.8]} 6. Be3 {[%clk 0:03:01.3]} 6... Bg7 {[%clk 0:02:55.5]}
7. f3 {[%clk 0:03:01.7]} 7... O-O {[%clk 0:02:56.1]} 8. Qd2 {[%clk 0:03:02.2]}
8... Nc6 {[%clk 0:02:56.8]} 9. Bc4 {[%clk 0:03:02.4]} 9... Bd7 {[%clk
0:02:56.9]} 10. O-O-O {[%clk 0:03:02.4]} 10... Rb8 {[%clk 0:02:57.5]} 11. Bb3
{[%clk 0:02:58.9]} 11... Nxd4 {[%clk 0:02:56.4]} 12. Bxd4 {[%clk 0:02:59]} 12...
b5 {[%clk 0:02:57.3]} 13. Nd5 {[%clk 0:02:58.6]} 13... Nxd5 {[%clk 0:02:39.2]}
14. Bxg7 {[%clk 0:02:59.5]} 14... Kxg7 {[%clk 0:02:38.3]} 15. exd5 {[%clk
0:02:59.9]} 15... a5 {[%clk 0:02:37.5]} 16. a3 {[%clk 0:02:58.8]} 16... Qb6
{[%clk 0:02:31.2]} 17. Qd4+ {[%clk 0:02:43.7]} 17... f6 {[%clk 0:02:27.7]} 18.
Rhe1 {[%clk 0:02:42.4]} 18... Qxd4 {[%clk 0:02:19.8]} 19. Rxd4 {[%clk
0:02:42.2]} 19... Kf7 {[%clk 0:02:19.9]} 20. Rde4 {[%clk 0:02:40.1]} 20... Rfe8
{[%clk 0:02:19]} 21. g4 {[%clk 0:02:40.3]} 21... Rbc8 {[%clk 0:02:08.3]} 22.
R4e3 {[%clk 0:02:37.8]} 22... Rc5 {[%clk 0:01:58.5]} 23. Kb1 {[%clk 0:02:37.3]}
23... Rc7 {[%clk 0:01:57.3]} 24. c3 {[%clk 0:02:34.6]} 24... Rc5 {[%clk
0:01:42.9]} 25. h4 {[%clk 0:02:30.8]} 25... h6 {[%clk 0:01:41.3]} 26. R3e2
{[%clk 0:02:26.3]} 26... Bc8 {[%clk 0:01:19.7]} 27. Rh1 {[%clk 0:02:22.9]} 27...
Bb7 {[%clk 0:01:17.8]} 28. Rd2 {[%clk 0:02:20.2]} 28... a4 {[%clk 0:01:15.7]}
29. Ba2 {[%clk 0:02:19.9]} 29... Ra8 {[%clk 0:00:57.3]} 30. h5 {[%clk
0:02:19.4]} 30... g5 {[%clk 0:00:56.6]} 31. Re1 {[%clk 0:02:19.5]} 31... Ra7
{[%clk 0:00:51.7]} 32. Re3 {[%clk 0:02:13.6]} 32... Kf8 {[%clk 0:00:45.3]} 33.
Kc1 {[%clk 0:02:13.7]} 33... Kf7 {[%clk 0:00:40]} 34. Kd1 {[%clk 0:02:13.9]}
34... Kf8 {[%clk 0:00:40.2]} 35. Ke1 {[%clk 0:02:13.1]} 35... Kf7 {[%clk
0:00:40.6]} 36. Kf2 {[%clk 0:02:13]} 36... Kf8 {[%clk 0:00:41.1]} 37. Rd4 {[%clk
0:02:12.3]} 37... Kf7 {[%clk 0:00:35.1]} 38. Kg3 {[%clk 0:02:11.9]} 38... Kf8
{[%clk 0:00:35.1]} 39. f4 {[%clk 0:02:12.4]} 39... Kf7 {[%clk 0:00:15.5]} 40.
fxg5 {[%clk 0:02:11.9]} 40... hxg5 {[%clk 0:00:15.9]} 41. Re2 {[%clk 0:02:08.6]}
41... Ra8 {[%clk 0:00:13]} 42. Red2 {[%clk 0:02:05.9]} 42... Rh8 {[%clk
0:00:11.8]} 43. Bb1 {[%clk 0:02:05.8]} 43... Rc7 {[%clk 0:00:10.5]} 44. Bg6+
{[%clk 0:02:05.6]} 44... Kg7 {[%clk 0:00:09.3]} 45. Bf5 {[%clk 0:02:06.5]} 45...
Rb8 {[%clk 0:00:08.9]} 46. Be6 {[%clk 0:02:06.6]} 46... Bc8 {[%clk 0:00:09]} 47.
Bxc8 {[%clk 0:02:04.6]} 47... Rbxc8 {[%clk 0:00:08.7]} 48. Re2 {[%clk
0:02:03.9]} 48... Kf7 {[%clk 0:00:08]} 49. Kf3 {[%clk 0:02:02.7]} 49... Rc4
{[%clk 0:00:08.2]} 50. Ke4 {[%clk 0:01:59.3]} 50... R8c7 {[%clk 0:00:04.5]} 51.
Rf2 {[%clk 0:01:55.2]} 51... Kg7 {[%clk 0:00:04.6]} 52. Rf5 {[%clk 0:01:55]}
52... Rxd4+ {[%clk 0:00:03.7]} 53. Kxd4 {[%clk 0:01:54.8]} 53... Rc4+ {[%clk
0:00:04.3]} 54. Kd3 {[%clk 0:01:55.2]} 54... Rxg4 {[%clk 0:00:04.7]} 55. Rf2
{[%clk 0:01:49.2]} 55... Rg3+ {[%clk 0:00:05.1]} 56. Kd4 {[%clk 0:01:49.1]}
56... Rh3 {[%clk 0:00:05.8]} 57. b3 {[%clk 0:01:44.5]} 57... axb3 {[%clk
0:00:05.5]} 58. Rb2 {[%clk 0:01:44.7]} 58... Rh4+ {[%clk 0:00:05.4]} 59. Ke3
{[%clk 0:01:44.2]} 59... Rh3+ {[%clk 0:00:05.6]} 60. Kd4 {[%clk 0:01:41.9]}
60... Rh4+ {[%clk 0:00:06.1]} 61. Ke3 {[%clk 0:01:41.8]} 61... Rh3+ {[%clk
0:00:05]} 62. Ke4 {[%clk 0:01:39.4]} 62... Rxc3 {[%clk 0:00:04.3]} 63. Kd4
{[%clk 0:01:37.2]} 63... Rc4+ {[%clk 0:00:04.5]} 64. Kd3 {[%clk 0:01:37.1]}
64... f5 {[%clk 0:00:03.5]} 65. Rxb3 {[%clk 0:01:37.3]} 65... Rc5 {[%clk
0:00:03.1]} 66. Kd4 {[%clk 0:01:37.8]} 66... Kf6 {[%clk 0:00:03.5]} 67. Re3
{[%clk 0:01:34.6]} 67... f4 {[%clk 0:00:02.3]} 68. Re6+ {[%clk 0:01:34.8]} 68...
Kf7 {[%clk 0:00:02.5]} 69. h6 {[%clk 0:01:34.5]} 69... f3 {[%clk 0:00:01.3]} 70.
h7 {[%clk 0:01:32.6]} 1-0

[Event "Late-Titled-Tuesday-Blitz-April-16-2024"]
[Site "Chess.com"]
[Date "2024.04.16"]
[Round "10"]
[White "Allion2017"]
[Black "Mariia89"]
[Result "1-0"]
[WhiteElo "2260"]
[BlackElo "2218"]
[TimeControl "180+1"]
[EndTime "15:54:32 PDT"]
[Termination "Allion2017 won on time"]

1. d4 {[%clk 0:02:55.2]} 1... Nf6 {[%clk 0:02:59.4]} 2. c4 {[%clk 0:02:55.1]}
2... c5 {[%clk 0:02:59.9]} 3. d5 {[%clk 0:02:55]} 3... b5 {[%clk 0:03:00.4]} 4.
cxb5 {[%clk 0:02:54.6]} 4... a6 {[%clk 0:03:01]} 5. bxa6 {[%clk 0:02:54.8]} 5...
Bxa6 {[%clk 0:03:01.2]} 6. Nc3 {[%clk 0:02:55]} 6... d6 {[%clk 0:03:01.5]} 7.
Nf3 {[%clk 0:02:54.3]} 7... g6 {[%clk 0:03:01]} 8. e4 {[%clk 0:02:54.9]} 8...
Bxf1 {[%clk 0:03:00.5]} 9. Kxf1 {[%clk 0:02:55.2]} 9... Bg7 {[%clk 0:03:01.2]}
10. h3 {[%clk 0:02:55.8]} 10... O-O {[%clk 0:03:01.6]} 11. Kg1 {[%clk
0:02:56.5]} 11... Nbd7 {[%clk 0:03:00.4]} 12. Kh2 {[%clk 0:02:57.2]} 12... Qa5
{[%clk 0:03:00.7]} 13. Re1 {[%clk 0:02:57.2]} 13... Rfb8 {[%clk 0:03:01]} 14.
Re2 {[%clk 0:02:57.8]} 14... Ne8 {[%clk 0:03:00.6]} 15. Bg5 {[%clk 0:02:54.4]}
15... Kf8 {[%clk 0:02:59.5]} 16. Qc1 {[%clk 0:02:46.8]} 16... Kg8 {[%clk
0:02:43.2]} 17. Rc2 {[%clk 0:02:36.3]} 17... Rb7 {[%clk 0:02:34.3]} 18. Kg1
{[%clk 0:02:29.7]} 18... Rab8 {[%clk 0:02:25.1]} 19. b3 {[%clk 0:02:07.7]} 19...
Nb6 {[%clk 0:02:13.6]} 20. Bd2 {[%clk 0:02:01.4]} 20... Qa6 {[%clk 0:02:13]} 21.
Rb1 {[%clk 0:01:58.1]} 21... Nd7 {[%clk 0:01:38.6]} 22. Qf1 {[%clk 0:01:50]}
22... Qa8 {[%clk 0:01:30.6]} 23. Be1 {[%clk 0:01:39.6]} 23... Nc7 {[%clk
0:01:25.3]} 24. Qe2 {[%clk 0:01:38]} 24... Qa3 {[%clk 0:00:59.4]} 25. Rd1 {[%clk
0:01:32.5]} 25... Na6 {[%clk 0:00:47.2]} 26. Nb1 {[%clk 0:01:31.8]} 26... Qb4
{[%clk 0:00:18.2]} 27. Bxb4 {[%clk 0:01:30.3]} 27... Nxb4 {[%clk 0:00:19.1]} 28.
Rcd2 {[%clk 0:01:27]} 28... Ra7 {[%clk 0:00:17.4]} 29. Rc1 {[%clk 0:01:14.1]}
29... Rba8 {[%clk 0:00:16.8]} 30. Nc3 {[%clk 0:01:11.9]} 30... Bh6 {[%clk
0:00:15]} 31. Rcd1 {[%clk 0:01:02.2]} 31... Bxd2 {[%clk 0:00:13.9]} 32. Rxd2
{[%clk 0:01:02.8]} 32... Nb6 {[%clk 0:00:10.9]} 33. e5 {[%clk 0:01:01.8]} 33...
dxe5 {[%clk 0:00:08.4]} 34. Nxe5 {[%clk 0:00:59.7]} 34... Nc8 {[%clk 0:00:04.5]}
35. Nc6 {[%clk 0:00:52.2]} 35... Nxc6 {[%clk 0:00:04.3]} 36. dxc6 {[%clk
0:00:52.5]} 36... Nd6 {[%clk 0:00:05.2]} 37. Qe5 {[%clk 0:00:45]} 37... Ra5
{[%clk 0:00:04]} 38. Qxe7 {[%clk 0:00:38.2]} 38... Nf5 {[%clk 0:00:04]} 39. Qd7
{[%clk 0:00:35.4]} 39... Kg7 {[%clk 0:00:03.3]} 40. c7 {[%clk 0:00:34.2]} 1-0

[Event "Late-Titled-Tuesday-Blitz-April-16-2024"]
[Site "Chess.com"]
[Date "2024.04.16"]
[Round "10"]
[White "Jahonas"]
[Black "martinmena"]
[Result "1-0"]
[WhiteElo "2384"]
[BlackElo "2188"]
[TimeControl "180+1"]
[EndTime "15:54:34 PDT"]
[Termination "Jahonas won by resignation"]

1. d4 {[%clk 0:03:00.2]} 1... d5 {[%clk 0:02:59.7]} 2. c4 {[%clk 0:03:00.1]}
2... e6 {[%clk 0:02:59.2]} 3. cxd5 {[%clk 0:03:00.1]} 3... exd5 {[%clk
0:03:00.1]} 4. Nc3 {[%clk 0:03:00.6]} 4... Nf6 {[%clk 0:03:00]} 5. Nf3 {[%clk
0:03:01]} 5... Be7 {[%clk 0:02:58.7]} 6. Bg5 {[%clk 0:03:01.1]} 6... O-O {[%clk
0:02:59.1]} 7. e3 {[%clk 0:03:01.2]} 7... Nbd7 {[%clk 0:02:59.1]} 8. Bd3 {[%clk
0:03:01.5]} 8... c6 {[%clk 0:02:59.5]} 9. O-O {[%clk 0:03:01.8]} 9... Re8 {[%clk
0:03:00.2]} 10. Rc1 {[%clk 0:03:01.8]} 10... Nf8 {[%clk 0:03:00.3]} 11. Qc2
{[%clk 0:03:02.1]} 11... Ne4 {[%clk 0:02:55.6]} 12. Bxe7 {[%clk 0:02:56.5]}
12... Qxe7 {[%clk 0:02:56.5]} 13. a3 {[%clk 0:02:53.6]} 13... f5 {[%clk
0:02:54.9]} 14. Ne5 {[%clk 0:02:52.4]} 14... Nd7 {[%clk 0:02:46.2]} 15. f4
{[%clk 0:02:51.3]} 15... Nxe5 {[%clk 0:02:45.2]} 16. fxe5 {[%clk 0:02:51]} 16...
Qg5 {[%clk 0:02:42.4]} 17. Rf3 {[%clk 0:02:47.5]} 17... Be6 {[%clk 0:02:29.6]}
18. Rcf1 {[%clk 0:02:47]} 18... Rf8 {[%clk 0:02:29]} 19. Bxe4 {[%clk 0:02:44.4]}
19... fxe4 {[%clk 0:02:29.3]} 20. Rxf8+ {[%clk 0:02:43.7]} 20... Rxf8 {[%clk
0:02:28.6]} 21. Rxf8+ {[%clk 0:02:43.8]} 21... Kxf8 {[%clk 0:02:29.5]} 22. Qf2+
{[%clk 0:02:43.7]} 22... Qf5 {[%clk 0:02:22.8]} 23. b4 {[%clk 0:02:38.1]} 23...
Qxf2+ {[%clk 0:02:14.6]} 24. Kxf2 {[%clk 0:02:37.5]} 24... b5 {[%clk 0:02:13.6]}
25. Kg3 {[%clk 0:02:28.1]} 25... g5 {[%clk 0:02:12.1]} 26. h4 {[%clk 0:02:26]}
26... h6 {[%clk 0:02:12.4]} 27. hxg5 {[%clk 0:02:25.9]} 27... hxg5 {[%clk
0:02:13.3]} 28. Nb1 {[%clk 0:02:20.1]} 28... Kg7 {[%clk 0:02:05.5]} 29. Nd2
{[%clk 0:02:20]} 29... Kg6 {[%clk 0:02:03]} 30. Nb3 {[%clk 0:02:19.1]} 30... Kf5
{[%clk 0:02:00.3]} 31. Na5 {[%clk 0:02:01]} 31... Bd7 {[%clk 0:02:00]} 32. Nb7
{[%clk 0:01:58.5]} 32... Kg6 {[%clk 0:01:55]} 33. Nc5 {[%clk 0:01:53.6]} 33...
Bc8 {[%clk 0:01:49.4]} 34. a4 {[%clk 0:01:33.4]} 34... bxa4 {[%clk 0:01:18.4]}
35. Nxa4 {[%clk 0:01:32.6]} 35... Ba6 {[%clk 0:01:15.6]} 36. Nc5 {[%clk
0:01:26.3]} 36... Be2 {[%clk 0:01:12.1]} 37. Nb7 {[%clk 0:01:20]} 37... Kf5
{[%clk 0:01:02.9]} 38. Nd8 {[%clk 0:01:14]} 38... Bb5 {[%clk 0:00:52.2]} 39. Nf7
{[%clk 0:00:53.7]} 39... Kg6 {[%clk 0:00:44.6]} 40. Nd6 {[%clk 0:00:51.9]} 40...
Be2 {[%clk 0:00:32.3]} 41. Nc8 {[%clk 0:00:50.9]} 41... a6 {[%clk 0:00:08.9]}
42. Ne7+ {[%clk 0:00:50.7]} 42... Kf7 {[%clk 0:00:09.4]} 43. Nxc6 {[%clk
0:00:51.6]} 43... Ke6 {[%clk 0:00:09.5]} 44. Na5 {[%clk 0:00:49.1]} 44... Bc4
{[%clk 0:00:07.6]} 45. Nxc4 {[%clk 0:00:43.4]} 45... dxc4 {[%clk 0:00:07.5]} 46.
Kf2 {[%clk 0:00:43.8]} 46... Kd5 {[%clk 0:00:03.7]} 47. Ke2 {[%clk 0:00:44.2]}
47... Kc6 {[%clk 0:00:03.9]} 48. Kd2 {[%clk 0:00:44.1]} 48... Kb5 {[%clk
0:00:02.2]} 49. Kc3 {[%clk 0:00:44.4]} 49... a5 {[%clk 0:00:01.6]} 50. bxa5
{[%clk 0:00:44.5]} 50... Kxa5 {[%clk 0:00:02.5]} 51. Kxc4 {[%clk 0:00:45]} 51...
Kb6 {[%clk 0:00:03.4]} 52. Kd5 {[%clk 0:00:45.3]} 52... Kc7 {[%clk 0:00:04.2]}
53. Kxe4 {[%clk 0:00:45.7]} 53... Kd7 {[%clk 0:00:04.8]} 54. Kf5 {[%clk
0:00:46.1]} 1-0

[Event "Late-Titled-Tuesday-Blitz-April-16-2024"]
[Site "Chess.com"]
[Date "2024.04.16"]
[Round "10"]
[White "TigrVShlyape"]
[Black "ural58"]
[Result "1-0"]
[WhiteElo "2938"]
[BlackElo "2549"]
[TimeControl "180+1"]
[EndTime "15:54:39 PDT"]
[Termination "TigrVShlyape won on time"]

1. e4 {[%clk 0:03:00.9]} 1... d5 {[%clk 0:02:59.2]} 2. exd5 {[%clk 0:02:58.9]}
2... Qxd5 {[%clk 0:02:59.2]} 3. Nc3 {[%clk 0:02:58.2]} 3... Qa5 {[%clk
0:02:59.1]} 4. d4 {[%clk 0:02:56.4]} 4... Nf6 {[%clk 0:02:59.2]} 5. Nf3 {[%clk
0:02:53]} 5... Nc6 {[%clk 0:02:59]} 6. h3 {[%clk 0:02:49.5]} 6... Ne4 {[%clk
0:02:58]} 7. Bd3 {[%clk 0:02:41.1]} 7... Nxc3 {[%clk 0:02:51.2]} 8. bxc3 {[%clk
0:02:41.4]} 8... g6 {[%clk 0:02:42.8]} 9. O-O {[%clk 0:02:39.7]} 9... Bg7 {[%clk
0:02:42.8]} 10. Bd2 {[%clk 0:02:29.3]} 10... O-O {[%clk 0:02:42.3]} 11. Re1
{[%clk 0:02:27.8]} 11... Qd5 {[%clk 0:02:00.2]} 12. a4 {[%clk 0:02:11.9]} 12...
a6 {[%clk 0:01:58.3]} 13. Rb1 {[%clk 0:02:09.5]} 13... Rb8 {[%clk 0:01:51]} 14.
c4 {[%clk 0:02:08.1]} 14... Qd6 {[%clk 0:01:50.8]} 15. c5 {[%clk 0:02:06.4]}
15... Qd8 {[%clk 0:01:48.4]} 16. c3 {[%clk 0:02:05.2]} 16... b6 {[%clk
0:01:42.3]} 17. Be4 {[%clk 0:02:00.7]} 17... Bd7 {[%clk 0:01:40.3]} 18. d5
{[%clk 0:01:58.8]} 18... Ne5 {[%clk 0:01:37.6]} 19. c6 {[%clk 0:01:56.2]} 19...
Nxf3+ {[%clk 0:01:34.6]} 20. Bxf3 {[%clk 0:01:50.2]} 20... Bf5 {[%clk
0:01:32.3]} 21. Rb4 {[%clk 0:01:47.4]} 21... a5 {[%clk 0:01:29.6]} 22. Rb3
{[%clk 0:01:38.1]} 22... Qd6 {[%clk 0:01:23.2]} 23. c4 {[%clk 0:01:31.6]} 23...
e6 {[%clk 0:01:02.9]} 24. Bc1 {[%clk 0:01:18.8]} 24... exd5 {[%clk 0:01:01.2]}
25. cxd5 {[%clk 0:01:12.5]} 25... Rfe8 {[%clk 0:00:58.8]} 26. Ba3 {[%clk
0:01:11.5]} 26... Qf4 {[%clk 0:00:57.6]} 27. Rbe3 {[%clk 0:01:04.4]} 27... Rxe3
{[%clk 0:00:56.2]} 28. Rxe3 {[%clk 0:00:59.1]} 28... Bf8 {[%clk 0:00:55.6]} 29.
g3 {[%clk 0:00:52.9]} 29... Qc4 {[%clk 0:00:42.4]} 30. Be2 {[%clk 0:00:48.2]}
30... Qa2 {[%clk 0:00:36.7]} 31. Bxf8 {[%clk 0:00:45.9]} 31... Rxf8 {[%clk
0:00:35.5]} 32. g4 {[%clk 0:00:44.6]} 32... Bc2 {[%clk 0:00:30.7]} 33. Qd4
{[%clk 0:00:41.9]} 33... Qxa4 {[%clk 0:00:27.1]} 34. Qe5 {[%clk 0:00:38.3]}
34... Qb4 {[%clk 0:00:17.1]} 35. Qxc7 {[%clk 0:00:37.3]} 35... Be4 {[%clk
0:00:13.6]} 36. d6 {[%clk 0:00:30.7]} 36... Qb1+ {[%clk 0:00:05.1]} 37. Bf1
{[%clk 0:00:30.6]} 37... Bd5 {[%clk 0:00:03.8]} 38. Qe7 {[%clk 0:00:17.3]} 38...
Bc4 {[%clk 0:00:03.6]} 39. Re1 {[%clk 0:00:17.1]} 39... Qc2 {[%clk 0:00:02]} 40.
d7 {[%clk 0:00:15.8]} 40... Bxf1 {[%clk 0:00:02.1]} 41. d8=Q {[%clk 0:00:14.6]}
1-0